Cogmind - Beta 15 @@@ ROGUE MODE // 2025.10.15 @ 16:55:59 Player: shapeshifter Result: Destroyed by G-73 Enforcer with Phase Gun Performance ------------- Evolutions (8) 4000 Regions Visited (29) 5800 Robots Destroyed (151) 755 Value Destroyed (7725) 7725 Prototype IDs (251) 5020 Alien Tech Used (10) 2000 Bonus (30777) 30777 TOTAL SCORE: 56077 Bonus ------- High Alert Combat Kills 58 Follower Combat Kills 1363 Aligned with FarCom 300 Met Data Miner 300 Used Data Conduit 3000 Met Zhirov 300 Met Warlord at Base 500 MAIN.C Attacked Warlord 500 Warlord Defense Kills 6134 Found Hidden Lab 3000 Decrypted A0 Command 3000 Used Core Reset Matrix 3000 Met Warlord at Research 2000 Invited to Help at Command 2000 Hacked God Mode 5000 Pursued by Intercept 500 Friendly Fire -178 Cogmind --------- Core Integrity 0/1450 Matter 40/300 Energy 100/100 System Corruption 3% +Membrane Temperature Cool (0) Movement Hovering (70) Location -2/Section 7 Parts ------- > --- POWER (2) -------- (None) > --- PROPULSION (7) --- Gyrokinetic Inverter > --- UTILITY (10) ----- Medium Storage Unit Advanced Signal Interpreter Experimental Core Analyzer Graphene Brace Improved Hacking Suite Deep Network Scanner > --- WEAPON (4) ------- (None) > --- INVENTORY (10) --- Transdimensional Reconstructor Subatomic Replicator Core Stripper Peak State ------------ > --- POWER ------------ Light Quantum Reactor Light Quantum Reactor > --- PROPULSION ------- Centrium Leg Heavy Shield Leg Combat Antigrav System Combat Antigrav System Antigrav Array > --- UTILITY ---------- High-capacity Storage Unit Energy Well Advanced Signal Interpreter Heavy Regenerative Plating Graphene Brace Advanced Focal Shield Experimental Thermal Shield Advanced Point Defense System Deep Network Scanner > --- WEAPON ----------- Improved Remote Datajack Guided Remote Datajack > --- INVENTORY -------- Impulse Thruster Array Impulse Thruster Array Impulse Thruster Array Impulse Thruster Array Medium Storage Unit Advanced Force Field Transdimensional Reconstructor Core Regenerator Core Reset Matrix Potential Cannon Potential Cannon Field Lobotomy Kit [Rating: 177] Favorites ----------- Power Light Ion Engine Engine Light Ion Engine Power Core Fission Core Reactor Light Quantum Reactor Propulsion Combat Linear Gravjet Treads Light Treads Leg Enhanced Flexi-carbon Leg Wheel Armored Huge Wheel Hover Unit Combat Linear Gravjet Flight Unit Xenon Bombardment Thruster Utility Medium Storage Unit Device Advanced Heat Sink Storage Medium Storage Unit Processor Enhanced Optical Array Hackware Hacking Suite Protection Layered Medium Armor Plating Artifact LC Capacitor Weapon XL Autogun Subcomponent Energy Gun Gatling Laser Energy Cannon Compact HERF Cannon Ballistic Gun XL Autogun Subcomponent Ballistic Cannon Heavy Gauss Cannon Launcher Rocket Launcher Special Weapon Improved Remote Datajack Impact Weapon Core Stripper Slashing Weapon Vibroblade Piercing Weapon Makeshift Spear Build | -11 -10 -10 -10 -9 -8 -8 -8 -8 -6 -6 -6 -6 -5 -5 -5 -5 -5 -4 -4 -4 -4 -4 -3 -3 -3 -3 -2 -2 -2 ------- Run | Yrd Mat Min Exi Min Mat Sto Rec Scr Fac Low Low Dat Pro Fac Upp Upp War Pro Fac Upp Upp Zhi Pro Res Arm Lab Res Qua Sec Slots Evolved 16 | . . . . . 4 . . . 4 . . . . 2 . . . . 2 . . . . 2 . . 2 . . Power 1 | . . . . . . . . . . . . . . 1 . . . . . . . . . . . . . . . Propulsion 5 | . . . . . 1 . . . 1 . . . . 1 . . . . 1 . . . . 1 . . . . . Utility 8 | . . . . . 2 . . . 2 . . . . . . . . . 1 . . . . 1 . . 2 . . Weapon 2 | . . . . . 1 . . . 1 . . . . . . . . . . . . . . . . . . . . Parts Attached 170 | 9 . . 1 3 2 5 9 4 5 3 12 9 4 8 4 5 26 2 7 . 1 . 2 6 6 11 14 5 7 Power 16 | 1 . . . . . 1 1 . 1 1 . . 1 1 . 2 1 . 2 . . . . 1 . . 2 . 1 Engine 7 | 1 . . . . . 1 1 . . 1 . . . 1 . 2 . . . . . . . . . . . . . Core 2 | . . . . . . . . . 1 . . . 1 . . . . . . . . . . . . . . . . Reactor 7 | . . . . . . . . . . . . . . . . . 1 . 2 . . . . 1 . . 2 . 1 Propulsion 48 | 4 . . . 1 . 1 2 1 2 . 3 1 3 2 1 . 8 . . . . . 1 2 . 3 8 2 3 Treads 4 | 2 . . . . . 1 . . 1 . . . . . . . . . . . . . . . . . . . . Leg 14 | . . . . . . . . . . . . 1 3 1 1 . 2 . . . . . . . . 3 3 . . Wheel 7 | 2 . . . 1 . . 1 1 1 . . . . 1 . . . . . . . . . . . . . . . Hover 20 | . . . . . . . . . . . 1 . . . . . 6 . . . . . 1 2 . . 5 2 3 Flight 3 | . . . . . . . 1 . . . 2 . . . . . . . . . . . . . . . . . . Utility 57 | 2 . . 1 1 1 . 4 1 1 2 4 2 . 4 3 . 4 2 5 . 1 . 1 3 4 5 2 3 1 Device 23 | 1 . . . 1 . . . 1 . 1 . 1 . 2 2 . 2 . 2 . 1 . 1 2 4 1 . 1 . Storage 6 | 1 . . 1 . . . 1 . . . 1 . . . . . . . 1 . . . . . . 1 . . . Processor 10 | . . . . . . . 2 . . 1 2 . . 1 . . 1 . 1 . . . . . . . 1 . 1 Hackware 7 | . . . . . . . 1 . . . . . . 1 . . . 1 1 . . . . 1 . . 1 1 . Protection 10 | . . . . . 1 . . . 1 . 1 1 . . 1 . 1 1 . . . . . . . 2 . 1 . Artifact 1 | . . . . . . . . . . . . . . . . . . . . . . . . . . 1 . . . Weapon 49 | 2 . . . 1 1 3 2 2 1 . 5 6 . 1 . 3 13 . . . . . . . 2 3 2 . 2 Energy Gun 4 | . . . . . . 1 1 1 . . . . . . . . . . . . . . . . 1 . . . . Energy Cannon 9 | . . . . . . . 1 . . . . . . 1 . 1 4 . . . . . . . . 2 . . . Ballistic Gun 10 | 2 . . . . 1 1 . . 1 . . 5 . . . . . . . . . . . . . . . . . Ballistic Cannon 3 | . . . . . . . . 1 . . . . . . . 2 . . . . . . . . . . . . . Launcher 4 | . . . . 1 . 1 . . . . . . . . . . 1 . . . . . . . . . . . 1 Special Weapon 10 | . . . . . . . . . . . . 1 . . . . 7 . . . . . . . 1 1 . . . Impact Weapon 1 | . . . . . . . . . . . . . . . . . . . . . . . . . . . . . 1 Slashing Weapon 3 | . . . . . . . . . . . 1 . . . . . . . . . . . . . . . 2 . . Piercing Weapon 5 | . . . . . . . . . . . 4 . . . . . 1 . . . . . . . . . . . . Special Melee Weapon . | . . . . . . . . . . . . . . . . . . . . . . . . . . . . . . Unidentified Prototypes 19 | . . . . 1 . 1 . . . . . 1 . . . . 5 . 1 . . 1 . . 1 4 1 2 1 Corrupted Parts 4 | . . . . . . . . . . . . . . . . . . . . . . . . . . 3 1 . . System Corruption 26 | . . . . . . . . . . . . . . . . . . . . . . . . . . 21 5 . . Parts Lost 74 | . . . . 1 . 15 3 . 1 3 8 2 . 1 2 . . . . . 1 . 3 10 2 3 3 6 10 Power 11 | . . . . . . 2 1 . . 1 1 . . 1 . . . . . . 1 . . 1 . 1 . 1 1 Propulsion 28 | . . . . 1 . 5 1 . . 1 1 2 . . . . . . . . . . 1 3 2 1 1 3 6 Utility 25 | . . . . . . 2 1 . 1 1 5 . . . 2 . . . . . . . 2 5 . 1 1 2 2 Weapon 10 | . . . . . . 6 . . . . 1 . . . . . . . . . . . . 1 . . 1 . 1 Highest Loss Streak 9 | . . . . 1 . 4 3 . 1 2 4 2 . 1 1 . . . . . 1 . 2 9 2 2 3 6 7 To Critical Strikes 1 | . . . . . . . . . . . . . . . . . . . . . . . . . . . . . 1 Average Backups 10 | 3 4 5 9 11 11 6 3 9 12 13 15 5 10 9 9 9 8 9 12 15 18 20 19 16 14 12 14 13 7 Power . | . 1 1 1 1 1 . . . . . . . . . . . . 1 1 1 . 1 1 1 . . . . . Propulsion 1 | 1 2 2 2 2 2 . . . 2 3 1 . . . 1 1 1 1 1 4 4 3 2 . . . 1 . . Utility 3 | . . 1 2 4 4 3 1 1 3 3 5 2 5 2 3 2 2 3 6 7 10 12 11 9 9 7 5 2 . Weapon 2 | . 1 1 3 3 3 1 1 4 2 3 5 1 3 4 2 2 2 3 2 1 . . 1 1 1 2 2 1 1 Tool/Special . | . . . . . . . . . . . . . . . . . . . . . . . . . . . . . . Unused Backups 39 | . . . . . . . 3 . . . 6 1 . 3 4 . 6 . 1 . 1 2 1 . . . 6 1 4 Power . | . . . . . . . . . . . . . . . . . . . . . . . . . . . . . . Propulsion 5 | . . . . . . . . . . . . . . . . . . . . . . 1 . . . . 4 . . Utility 18 | . . . . . . . 2 . . . 3 1 . . 3 . 3 . 1 . 1 1 1 . . . 1 1 . Weapon 9 | . . . . . . . 1 . . . 1 . . 3 1 . 2 . . . . . . . . . 1 . . Tool/Special 7 | . . . . . . . . . . . 2 . . . . . 1 . . . . . . . . . . . 4 Average Slot Usage (%) 71 | . 100 100 71 94 63 37 46 48 79 80 75 31 62 76 85 85 92 73 82 87 82 80 78 72 50 68 69 73 41 Engine 3 | . 14 14 14 14 9 1 2 . . . 3 . . . 5 5 6 . . . . . . . . . . . . Reactor 1 | . . . . . . . . . . . . . . . . . 2 5 8 10 6 5 5 4 8 1 4 4 . Treads 3 | . 28 28 28 15 . 6 . . . . . . . . . . . . . . . . . . . . . . . Leg 6 | . . . . . . . . . . . . 3 21 17 16 17 21 . . . . . . . . 9 14 . . Wheel 3 | . . . . 11 18 6 4 9 12 7 3 . . 4 5 5 2 . . . . . . . . . . . . Hover 5 | . . . . . . . . . . . 1 2 . . . . 1 29 31 31 31 31 31 29 21 12 7 23 8 Device 10 | . 14 14 14 14 9 2 4 9 11 12 8 . . 11 8 14 13 2 5 10 13 14 16 19 4 14 16 12 6 Storage 7 | . 14 14 14 14 9 9 7 9 6 6 6 3 6 5 5 5 5 5 5 5 5 5 5 4 4 5 6 8 6 Processor 5 | . . . . . . . 7 9 6 12 15 . . 3 5 5 8 11 9 10 10 10 8 4 4 4 6 4 7 Hackware 3 | . . . . . . . 8 9 6 6 4 . . 1 5 . . 3 7 5 5 5 5 4 4 4 1 7 8 Protection 2 | . . . . . . 1 . . 4 . . 1 6 5 5 5 5 8 6 5 1 . . . . 2 1 . 1 Energy Gun 1 | . . . . . . 2 4 1 6 6 4 . . . . . . . . . . . . . . 4 1 . . Energy Cannon 3 | . . . . . . . 4 1 6 6 4 . . 2 4 6 13 5 6 8 7 7 5 2 . 5 1 . . Ballistic Gun 5 | . 28 28 . 23 18 8 . . 3 6 4 9 26 19 17 12 . . . . . . . . . . . . . Ballistic Cannon 1 | . . . . . . . . 1 6 6 3 . . . . 3 5 . . . . . . . . . . . . Peak Build Rating 177 | 7 7 8 11 21 17 17 30 39 70 69 66 51 56 89 88 101 135 112 131 138 137 137 130 140 95 152 177 168 137 Average Rating 70 | 5 7 7 7 13 14 10 21 27 59 65 57 30 51 77 84 87 113 109 123 128 130 132 128 119 76 116 142 144 74 On Entrance 69 | . 7 7 8 11 14 17 7 25 38 69 58 36 42 56 89 81 101 106 111 131 124 137 129 127 78 95 115 142 124 Naked Turns 9 | . . . . . . . . . . . . 9 . . . . . . . . . . . . . . . . . Heaviest Build 118 | 13 13 13 24 28 32 32 90 99 118 115 108 31 35 39 48 82 98 68 82 96 91 92 87 89 68 116 115 88 70 Greatest Support 160 | 40 40 40 40 40 44 44 10 18 38 38 28 28 78 48 56 76 126 68 82 82 91 91 91 100 73 65 160 90 92 Greatest Overweight (x) 9 | . . . . . . 6 8 9 9 4 3 1 1 1 1 2 2 . . 1 1 1 . . 1 1 1 . 1 Average Overweight (x) 1 | . . . . . . 1 5 7 2 3 2 . . . . . . . . . . . . . . . . . . Largest Inventory Capacity 25 | 8 8 8 15 15 15 15 25 25 25 25 25 10 10 10 10 10 10 10 20 20 20 20 20 20 20 20 20 20 20 Average Capacity 16 | 7 8 8 12 15 15 15 17 25 25 25 21 8 10 10 10 10 10 10 16 20 20 20 20 20 19 17 19 17 11 Most Carried 25 | 5 5 6 15 15 14 11 13 16 20 19 25 10 10 10 10 10 10 10 18 17 20 20 20 18 15 18 20 20 20 Average Carried 12 | 3 4 5 10 14 13 9 6 12 16 17 19 5 9 9 9 9 9 9 13 16 18 19 19 16 14 14 18 15 8 Final Capacity 25 | 8 8 8 15 15 15 15 25 25 25 25 10 10 10 10 10 10 10 10 20 20 20 20 20 20 10 20 20 20 10 Final Carried 20 | 4 5 6 15 14 11 9 7 12 19 18 7 10 10 10 10 10 10 10 16 17 20 20 19 14 8 18 20 19 4 Class Distribution -------------------- 34% | Mutant 22% | Scavenger-Tank 13% | Scavenger-Mutant 13% | Hacker-Mutant 10% | Skirmisher Dominant Class ---------------- Mutant | -10/Materials Mutant | -10/Mines Mutant | -10/Exiles Mutant | -9/Mines Mutant | -8/Materials Mutant | -8/Storage Mutant | -8/Recycling Mutant | -8/Scraptown Skirmisher | -6/Factory Skirmisher | -6/Lower Caves Skirmisher | -6/Lower Caves Gunner | -6/Data Miner Scavenger-Tank | -5/Proximity Caves Scavenger-Tank | -5/Factory Scavenger-Tank | -5/Upper Caves Scavenger-Tank | -5/Upper Caves Scavenger-Tank | -5/Warlord Scavenger-Mutant | -4/Proximity Caves Hacker-Mutant | -4/Factory Hacker-Mutant | -4/Upper Caves Hacker-Mutant | -4/Upper Caves Hacker-Mutant | -4/Zhirov Hacker-Mutant | -3/Proximity Caves Scavenger-Mutant | -3/Research Hacker-Mutant | -3/Armory Hacker-Mutant | -3/Lab Scavenger-Mutant | -2/Research Scavenger-Mutant | -2/Quarantine Hacker-Mutant | -2/Section 7 Resources | -11 -10 -10 -10 -9 -8 -8 -8 -8 -6 -6 -6 -6 -5 -5 -5 -5 -5 -4 -4 -4 -4 -4 -3 -3 -3 -3 -2 -2 -2 ----------- Run | Yrd Mat Min Exi Min Mat Sto Rec Scr Fac Low Low Dat Pro Fac Upp Upp War Pro Fac Upp Upp Zhi Pro Res Arm Lab Res Qua Sec Matter Collected 3993 | 289 . 71 . 274 . 246 157 16 . 134 246 205 302 163 317 260 330 140 100 20 35 . 55 33 . 216 375 9 . Remotely . | . . . . . . . . . . . . . . . . . . . . . . . . . . . . . . Salvage Created 5685 | 46 . 37 . 218 . 607 239 . 219 106 151 103 144 291 185 109 1108 123 451 198 343 . 255 67 . 249 372 64 . Parts 219 | 6 . 4 . 10 . 34 7 . 14 5 12 7 8 10 9 1 29 6 14 4 4 . 13 4 . 7 8 3 . Haulers Intercepted 2 | . . . . . . . . . . . . . . . . . . . 1 . 1 . . . . . . . . Recyclers Shooed 2 | . . . . . . 2 . . . . . . . . . . . . . . . . . . . . . . . Parts Field Recycled . | . . . . . . . . . . . . . . . . . . . . . . . . . . . . . . Retrieved Matter . | . . . . . . . . . . . . . . . . . . . . . . . . . . . . . . Parts Self-Destructed 69 | . . . . . . . . . . 5 14 . 14 . 15 2 . 8 . 8 2 . 1 . . . . . . Prevented 18 | . . . . . . . . . . . . . . . . . . 1 . 3 2 . 12 . . . . . . Kills | -11 -10 -10 -10 -9 -8 -8 -8 -8 -6 -6 -6 -6 -5 -5 -5 -5 -5 -4 -4 -4 -4 -4 -3 -3 -3 -3 -2 -2 -2 ------- Run | Yrd Mat Min Exi Min Mat Sto Rec Scr Fac Low Low Dat Pro Fac Upp Upp War Pro Fac Upp Upp Zhi Pro Res Arm Lab Res Qua Sec Combat Hostiles Destroyed 131 | . . . . 2 . 12 1 . 4 4 6 1 3 5 4 2 51 5 7 4 5 . 3 2 . 3 6 1 . Melee 5 | . . . . . . . . . . . 4 . . . . . . . . . . . . . . . . 1 . Guns 31 | . . . . 2 . 11 . . 2 3 2 1 3 3 4 . . . . . . . . . . . . . . Cannons 41 | . . . . . . . 1 . 2 1 . . . . . 2 12 5 7 3 4 . 1 1 . . 2 . . AOE 45 | . . . . . . 1 . . . . . . . 2 . . 39 . . . . . . . . . 3 . . Classes Destroyed 22 | 1 . . . 4 . 4 . . 1 . . . 1 2 1 1 5 . 1 . . . . 1 . . . . . Worker 2 | . . . . 2 . . . . . . . . . . . . . . . . . . . . . . . . . Builder 3 | . . . . 1 . 1 . . 1 . . . . . . . . . . . . . . . . . . . . Tunneler 5 | 2 . 1 . . . . . . 1 . . . . 1 . . . . . . . . . . . . . . . Hauler 2 | . . . . . . . . . . . . . . . . . . . 1 . 1 . . . . . . . . Recycler 3 | . . . . 1 . . 2 . . . . . . . . . . . . . . . . . . . . . . Mechanic 3 | . . . . . . 2 . . . . . . . . . . . . 1 . . . . . . . . . . Drone 1 | . . . . . . . . . . . . . 1 . . . . . . . . . . . . . . . . Watcher 2 | . . . . . . . . . . . . . . 2 . . . . . . . . . . . . . . . Swarmer 19 | . . . . . . 1 . . . 3 6 . . . . . 4 3 2 . . . . . . . . . . Cutter 2 | . . . . . . . . . . . . . . . . . . . . . . . . 2 . . . . . Grunt 59 | . . . . 2 . 6 . . 2 . . . 1 3 3 1 18 2 3 3 5 . 3 . . 3 4 . . Brawler 6 | . . . . . . . . . . . . . . . . 1 5 . . . . . . . . . . . . Duelist 1 | . . . . . . . . . . . . . . . . . 1 . . . . . . . . . . . . Protector 5 | . . . . . . . . . . . . . . . . . 5 . . . . . . . . . . . . Sentry 13 | . . . . . . 4 1 . 1 . . . 1 1 . . . . 2 1 . . . . . . 2 . . Demolisher 2 | . . . . . . . . . . . . . . . . . 2 . . . . . . . . . . . . Specialist 2 | . . . . . . . . . . . . . . . . . 2 . . . . . . . . . . . . Hunter 3 | . . . . . . 1 . . . . . . . . . . 2 . . . . . . . . . . . . Programmer 11 | . . . . . . . . . 1 1 . . . . . . 8 . . . . . . . . . . 1 . Behemoth 1 | . . . . . . . . . . . . . . 1 . . . . . . . . . . . . . . . Enhanced Grunt 1 | . . . . . . . . . . . . 1 . . . . . . . . . . . . . . . . . Executioner 2 | . . . . . . . . . . . . . . . . . 2 . . . . . . . . . . . . Master Thief 1 | . . . . . . . . . . . . . . . 1 . . . . . . . . . . . . . . Savage 1 | . . . . . . . . . . . . . . . . . 1 . . . . . . . . . . . . Bouncer 1 | . . . . . . . . . . . . . . . . . 1 . . . . . . . . . . . . Best Kill Streak 15 | 1 . 1 . 3 . 3 2 . 2 3 4 1 1 5 3 2 15 3 3 2 4 . 3 1 . 3 4 1 . Combat Bots Only 15 | . . . . 2 . 2 1 . 2 3 4 1 1 4 3 2 15 3 3 2 4 . 3 1 . 3 4 1 . Max Kills in Single Turn 6 | 1 . 1 . 1 . 2 2 . 2 1 1 1 1 3 1 1 6 1 2 1 1 . 1 1 . 1 2 1 . Gunslinging . | . . . . . . . . . . . . . . . . . . . . . . . . . . . . . . Exploded 5 | . . . . . . 1 . . . . . . . 2 . . 5 . . . . . . . . . 2 . . Melee 1 | . . . . . . . . . . . 1 . . . . . . . . . . . . . . . . 1 . Uniques/NPCs Destroyed 2 | . . . . . . . . . . . . . . . . . . . . . . . . . . 1 1 . . A5 (-3/Lab) God Mode (-2/Research) Combat | -11 -10 -10 -10 -9 -8 -8 -8 -8 -6 -6 -6 -6 -5 -5 -5 -5 -5 -4 -4 -4 -4 -4 -3 -3 -3 -3 -2 -2 -2 -------- Run | Yrd Mat Min Exi Min Mat Sto Rec Scr Fac Low Low Dat Pro Fac Upp Upp War Pro Fac Upp Upp Zhi Pro Res Arm Lab Res Qua Sec Hostile Shots Fired 981 | . . 6 . 11 . 118 22 . 75 33 50 24 12 47 27 11 47 21 25 20 15 . 40 53 11 19 92 59 143 Missed 326 | . . . . 4 . 30 9 . 19 9 14 5 2 17 9 3 17 8 12 11 6 . 23 15 3 12 35 22 41 Deflected 2 | . . . . . . . . . . . . . . . . . . . . . . . . . . . 2 . . Hits 655 | . . 6 . 7 . 88 13 . 56 24 36 19 10 30 18 8 30 13 13 9 9 . 17 38 8 7 57 37 102 Melee 37 | . . . . . . . . . 1 . 12 . . . 1 . . . . . . . . 23 . . . . . Projectile 618 | . . 6 . 7 . 88 13 . 55 24 24 19 10 30 17 8 30 13 13 9 9 . 17 15 8 7 57 37 102 AOE 8 | . . 6 . . . . . . . . . . . . . . 1 . . . . . . 1 . . . . . Critical Strikes 38 | . . 1 . 1 . 2 1 . 2 . . . . 2 3 . 1 . . . 1 . . 7 1 1 . 3 12 Actively Blocked 10 | . . . . . . . . . . . . . . . . . . . . . . . . . . 1 . . 9 Damage Taken 12924 | . 46 234 . 112 . 1476 259 . 677 357 401 885 169 782 346 153 525 113 193 132 136 . 362 1088 123 323 895 902 2235 Core 3494 | . . 30 . 48 . 280 148 . 72 45 125 258 60 62 16 20 77 . 43 . 9 . 55 300 32 110 226 160 1318 Absorbed by Shields 398 | . . . . . . . . . . . . . . . . . 124 103 21 106 34 . 10 . . . . . . Redirected to Shielding 138 | . . . . . . . . . . . 32 . . . . . . . 3 . . . . . . . . . 103 Ignored by Resistances 625 | . . . . . . . . . . . . . . . . . 18 . . . . . . . . . 418 80 109 Regen/Repaired (Parts) 567 | . . . . . . . . 506 . . . . . . . . 16 . . . . . . . . 29 16 . . Core Remaining (%) 65 | 100 . . . 68 . . . 22 . . . . 34 . . . . 82 . . . . 90 . . 59 . . . Volleys Fired 376 | 8 . 6 . 19 . 81 6 . 13 16 9 14 9 41 15 3 31 8 22 13 16 . 9 7 . 20 7 3 . Largest 4 | 2 . 2 . 2 . 3 2 . 4 4 2 1 4 4 4 4 2 1 2 2 2 . 1 1 . 2 1 1 . Hottest 298 | 40 . 40 . 40 . 79 110 . 214 214 140 60 80 158 158 298 188 50 188 188 188 . 94 94 . 294 200 200 . Shots Fired 656 | 16 . 12 . 39 . 139 10 . 33 28 11 14 36 105 53 10 40 8 24 15 17 . 9 7 . 20 7 3 . Gun 434 | 16 . 12 . 39 . 136 4 . 16 17 9 12 36 88 48 . . . . . . . . . . 1 . . . Cannon 182 | . . . . . . . 4 . 17 11 2 . . 17 5 10 12 8 24 15 17 . 9 5 . 18 5 3 . Launcher 7 | . . . . . . 3 2 . . . . . . . . . 2 . . . . . . . . . . . . Special 33 | . . . . . . . . . . . . 2 . . . . 26 . . . . . . 2 . 1 2 . . Kinetic 399 | 16 . 12 . 39 . 100 . . 25 10 7 12 36 88 48 6 . . . . . . . . . . . . . Thermal 112 | . . . . . . 36 4 . 8 18 4 . . 17 5 4 . . . . . . . . . 8 5 3 . Explosive 30 | . . . . . . 3 . . . . . . . . . . 27 . . . . . . . . . . . . Electromagnetic 60 | . . . . . . . 6 . . . . . . . . . 12 . 6 5 6 . 9 5 . 11 . . . Entropic 47 | . . . . . . . . . . . . . . . . . . 8 18 10 11 . . . . . . . . Robot Hit Streak 22 | 6 . 10 . 6 . 19 4 . 6 9 2 7 6 10 9 2 22 6 13 16 22 . 7 2 . 5 6 . . Robot Miss Streak 6 | 3 . 3 . 6 . 5 1 . 3 5 3 4 2 6 6 2 4 1 1 1 1 . 1 2 . 1 1 . . Penetration Max 1 | . . . . . . . . . 1 1 . . . . . . . . . . . . . . . . . . . Secondary Targets 6 | . . . . 1 . 2 . . . . . . 1 1 1 . . . . . . . . . . . . . . Max Gunslinging Chain 1 | . . . . 1 . 1 . . . . . . 1 1 1 . . . . . . . . . . . . . . Shots Hit Robots 429 | 10 . 9 . 18 . 98 5 . 17 17 14 14 21 58 30 4 29 6 16 14 15 . 7 4 . 7 6 8 2 Core Hits 273 | 3 . 4 . 6 . 38 4 . 10 7 8 10 9 19 11 2 109 4 6 4 7 . 2 1 . 2 5 2 . Critical Kills 1 | . . . . . . . . . . . . . . . . . . . . . . . . . . . 1 . . Critical Parts Destroyed 1 | . . . . . . . . . . 1 . . . . . . . . . . . . . . . . . . . Critical Strikes 26 | . . . . . . 4 . . . 1 . . . . . 2 6 2 2 2 3 . . . . . 1 3 . Burn 4 | . . . . . . 4 . . . . . . . . . . . . . . . . . . . . . . . Meltdown 1 | . . . . . . . . . . . . . . . . . . . . . . . . . . . 1 . . Destroy 1 | . . . . . . . . . . 1 . . . . . . . . . . . . . . . . . . . Blast 2 | . . . . . . . . . . . . . . . . 2 . . . . . . . . . . . . . Sever 9 | . . . . . . . . . . . . . . . . . 6 . . . . . . . . . . 3 . Sunder 9 | . . . . . . . . . . . . . . . . . . 2 2 2 3 . . . . . . . . Melee Attacks 47 | . . . . . . . . . . . 21 1 . . . . . . . . . . . . . . . 22 3 Kinetic 2 | . . . . . . . . . . . . . . . . . . . . . . . . . . . . . 2 Impact . | . . . . . . . . . . . . . . . . . . . . . . . . . . . . . . Slashing 33 | . . . . . . . . . . . 10 . . . . . . . . . . . . . . . . 22 1 Piercing 12 | . . . . . . . . . . . 11 1 . . . . . . . . . . . . . . . . . Sneak Attacks 1 | . . . . . . . . . . . . 1 . . . . . . . . . . . . . . . . . Combat Hostiles . | . . . . . . . . . . . . . . . . . . . . . . . . . . . . . . Follow-up Attacks 7 | . . . . . . . . . . . 7 . . . . . . . . . . . . . . . . . . Damage Inflicted 23633 | 134 . 104 . 278 . 1402 286 . 525 386 414 791 456 1686 674 278 10100 493 1119 944 1019 . 321 167 . 277 1247 392 140 Guns 5443 | 134 . 104 . 278 . 1245 74 . 228 247 86 736 456 1250 605 . . . . . . . . . . . . . . Cannons 5998 | . . . . . . . 46 . 283 139 . . . 37 69 278 236 493 1119 944 1019 . 321 75 . 277 662 . . Explosions 9926 | . . . . . . 157 129 . . . . . . 399 . . 8684 . . . . . . . . . 557 . . Melee 904 | . . . . . . . . . . . 328 55 . . . . . . . . . . . . . . . 392 129 Ramming 182 | . . . . . . . 37 . 14 . . . . . . . . . . . . . . 92 . . 28 . 11 Kinetic 5187 | 134 . 104 . 278 . 800 . . 366 141 63 736 456 1250 605 205 . . . . . . . . . . . . 49 Thermal 2784 | . . . . . . 445 129 . 145 245 23 . . 436 69 73 . . . . . . . . . . 1219 . . Explosive 8841 | . . . . . . 157 . . . . . . . . . . 8684 . . . . . . . . . . . . Electromagnetic 1697 | . . . . . . . 120 . . . . . . . . . 236 . 262 220 186 . 321 75 . 277 . . . Impact . | . . . . . . . . . . . . . . . . . . . . . . . . . . . . . . Slashing 1887 | . . . . . . . . . . . 235 . . . . . 1180 . . . . . . . . . . 392 80 Piercing 148 | . . . . . . . . . . . 93 55 . . . . . . . . . . . . . . . . . Entropic 2907 | . . . . . . . . . . . . . . . . . . 493 857 724 833 . . . . . . . . Highest Corruption 34 | . 2 2 2 2 . . 2 . 1 2 . . . . . . 2 2 . . . . . 2 2 23 34 34 3 Average Corruption 5 | . 1 2 2 2 . . 2 . 1 1 . . . . . . 1 2 . . . . . 2 2 15 32 3 3 Corruption Purged 2 | . . . . . . . . . . 2 . . . . . . . . . . . . . . . . . . . Corruption Blocked 20 | . . . . . . . . . . . . . . . . . . . . . . . . . . . 20 . . Effects 101 | . . 6 7 18 . . 8 . . 3 . . . . . . 2 2 . . . . . . 1 36 11 1 6 Message Errors 20 | . . 1 1 2 . . 3 . . . . . . . . . . 1 . . . . . . . 7 4 . 1 Matter Fused 24 | . . 3 3 3 . . 2 . . 1 . . . . . . . . . . . . . . 1 7 2 . 2 Heat Flow Errors 16 | . . . 1 7 . . 1 . . . . . . . . . . . . . . . . . . 3 1 . 3 Energy Discharges 10 | . . 1 1 . . . 1 . . 2 . . . . . . 1 . . . . . . . . 3 1 . . Parts Fused 2 | . . . . . . . . . . . . . . . . . . . . . . . . . . 1 1 . . Data Loss (minor) 18 | . . 1 1 5 . . . . . . . . . . . . 1 . . . . . . . . 8 2 . . Data Loss (major) 2 | . . . . . . . 1 . . . . . . . . . . . . . . . . . . 1 . . . Misfires 2 | . . . . 1 . . . . . . . . . . . . . . . . . . . . . 1 . . . Alerts 5 | . . . . . . . . . . . . . . . . . . 1 . . . . . . . 3 . 1 . Weapon Failures 2 | . . . . . . . . . . . . . . . . . . . . . . . . . . 2 . . . Overload Shots . | . . . . . . . . . . . . . . . . . . . . . . . . . . . . . . Overflow Damage 843 | . . . . . . 9 . . 10 4 8 . . . . . 160 96 209 41 6 . . 12 . 29 122 72 65 Projectiles 485 | . . . . . . . . . 10 4 . . . . . . 45 96 209 41 6 . . . . . 74 . . Explosions 201 | . . . . . . 9 . . . . . . . . . . 115 . . . . . . . . 29 48 . . Melee 157 | . . . . . . . . . . . 8 . . . . . . . . . . . . 12 . . . 72 65 Knockbacks 10 | . . . . . . . . . 3 2 . . . . . 5 . . . . . . . . . . . . . Impact . | . . . . . . . . . . . . . . . . . . . . . . . . . . . . . . Kinetic 8 | . . . . . . . . . 3 1 . . . . . 4 . . . . . . . . . . . . . Secondary 2 | . . . . . . . . . . 1 . . . . . 1 . . . . . . . . . . . . . Self-Inflicted Damage 332 | . . . . . . 46 55 . 7 . . . . . . . . . . . . . . 46 . 174 . . 4 Shots 6 | . . . . . . 1 3 . . . . . . . . . . . . . . . . . . 2 . . . Rammed 21 | . . . . . . . 13 . 1 . . . . . . . . . . . . . . 4 . . . . 3 Targets Rammed 24 | . . . . . . . 13 . 1 . . . . . . . . . . . . . . 4 . . 3 . 3 Kicked 3 | . . . . . . . . . . . . . . . . . . . . . . . . . . . 3 . . Crushed . | . . . . . . . . . . . . . . . . . . . . . . . . . . . . . . Highest Temperature 310 | . . . 217 273 . 21 82 . 244 126 74 126 121 221 189 111 7 30 243 237 310 1 299 121 138 257 138 29 232 Average Temperature 70 | . . . 113 102 . 7 21 . 82 55 41 63 54 96 77 65 2 18 74 119 86 1 66 49 56 59 57 15 80 Received Heat Transfer 1952 | . . . . 78 . 450 81 . 231 . . . 18 189 93 72 21 4 9 22 21 . 54 72 48 39 270 81 99 Effects 3 | . . . 1 . . . . . . . . . . . . . . . . 2 . . . . . . . . . Energy Bleed 1 | . . . 1 . . . . . . . . . . . . . . . . . . . . . . . . . . Interference 2 | . . . . . . . . . . . . . . . . . . . . 2 . . . . . . . . . Siege Activations . | . . . . . . . . . . . . . . . . . . . . . . . . . . . . . . Martial Activations . | . . . . . . . . . . . . . . . . . . . . . . . . . . . . . . Shielding Activations 1 | . . . . . . . . . . . . . . . . . . . . . . . . . . . 1 . . Total Turns 26 | . . . . . . . . . . . . . . . . . . . . . . . . . . . 26 . . Longest Duration 26 | . . . . . . . . . . . . . . . . . . . . . . . . . . . 26 . . Robots Disrupted . | . . . . . . . . . . . . . . . . . . . . . . . . . . . . . . Combat Hostiles . | . . . . . . . . . . . . . . . . . . . . . . . . . . . . . . Robots Corrupted 8 | . . . . . . . . . . . . . . . . . . . . 1 1 . 2 1 . 3 . . . Combat Hostiles 8 | . . . . . . . . . . . . . . . . . . . . 1 1 . 2 1 . 3 . . . Parts Fried 14 | . . . . . . . 1 . . . . . . . . . . . 1 . 2 . 2 1 . 7 . . . Impact Corruptions 2 | . . . . . . . . . . . . . . . . . . . . . . . . 2 . . . . . Robots Melted 1 | . . . . . . . . . . . . . . . . . . . . . . . . . . . 1 . . Combat Hostiles 1 | . . . . . . . . . . . . . . . . . . . . . . . . . . . 1 . . Parts Melted 11 | . . . . . . 4 . . . 2 . . . . . . 5 . . . . . . . . . . . . Heat Transferred 3587 | . . . . . . 1443 74 . 274 436 50 . . 350 100 100 . . . . . . . . . . 760 . . Parts Sabotaged . | . . . . . . . . . . . . . . . . . . . . . . . . . . . . . . Parts Stolen 9 | . . . . . . . . . . . 8 . . . 1 . . . . . . . . . . . . . . Parts Stripped . | . . . . . . . . . . . . . . . . . . . . . . . . . . . . . . Power Chain Reactions 3 | . . . . . . . 3 . . . . . . . . . . . . . . . . . . . . . . Alert | -11 -10 -10 -10 -9 -8 -8 -8 -8 -6 -6 -6 -6 -5 -5 -5 -5 -5 -4 -4 -4 -4 -4 -3 -3 -3 -3 -2 -2 -2 ------- Run | Yrd Mat Min Exi Min Mat Sto Rec Scr Fac Low Low Dat Pro Fac Upp Upp War Pro Fac Upp Upp Zhi Pro Res Arm Lab Res Qua Sec Maximum Alert Level 2 | . . . . . . . . . . . . . . 2 . . . . 1 . . . . . . . 1 . . Low Security (%) 89 | 100 100 100 . 100 100 100 100 . 100 . . . . 11 . . . . 51 . . . . 100 100 . 89 100 100 Level 1 4 | . . . . . . . . . . . . . . 8 . . . . 48 . . . . . . . 10 . . Level 2 6 | . . . . . . . . . . . . . . 79 . . . . . . . . . . . . . . . Level 3 . | . . . . . . . . . . . . . . . . . . . . . . . . . . . . . . Level 4 . | . . . . . . . . . . . . . . . . . . . . . . . . . . . . . . Level 5 . | . . . . . . . . . . . . . . . . . . . . . . . . . . . . . . High Security . | . . . . . . . . . . . . . . . . . . . . . . . . . . . . . . Max Security . | . . . . . . . . . . . . . . . . . . . . . . . . . . . . . . Peak Influence 664 | 5 45 9 . 127 37 88 97 . 60 . . . . 664 . . . . 323 . . . . 132 63 . 248 81 45 Initial 94 | . . 9 . . 37 15 3 . . . . . . 94 . . . . 88 . . . . . 63 . . . 45 Average 78 | . 10 . . 36 37 32 32 . 11 . . . . 516 . . . . 196 . . . . 10 39 . 81 28 5 Influence Increases 6227 | 10 45 5 . 278 . 435 371 . 155 175 140 . 284 825 192 112 1230 241 341 238 139 . 70 222 . 60 348 281 30 Destroy 0b10 Robot/C 3260 | . . . . 180 . 240 20 . 80 80 120 . 160 240 120 80 960 160 180 180 100 . 60 100 . 60 120 20 . Destroy 0b10 Robot/NC 150 | 10 . 5 . 20 . 15 15 . 10 . . . 10 20 . . 25 . 15 . 5 . . . . . . . . Destroy Leader 398 | . . . . 30 . 70 . . 20 20 20 . 20 64 20 10 . 20 34 10 . . 10 20 . . 30 . . Allied During Kill 786 | . . . . 33 . 2 . . . . . . 94 160 52 22 245 46 57 48 19 . . 8 . . . . . Successful Hack 90 | . . . . . . . 31 . 9 . . . . 6 . . . . 26 . . . . . . . . 18 . Select Force Hacks 270 | . 30 . . . . . 210 . 30 . . . . . . . . . . . . . . . . . . . . Disable Machine 420 | . . . . 15 . 15 45 . . . . . . 225 . . . . 15 . . . . 15 . . . 75 15 Destroy Structure 373 | . . . . . . 33 35 . 6 . . . . 110 . . . . 14 . . . . 4 . . 138 33 . Partial Spotted 45 | . 15 . . . . 15 . . . . . . . . . . . . . . . . . . . . . . 15 Lose Combat Pursuer 435 | . . . . . . 45 15 . . 75 . . . . . . . 15 . . 15 . . 75 . . 60 135 . Influence Decreases 6227 | 10 20 30 . 182 59 464 365 14 113 211 144 2 134 320 473 278 304 1234 183 211 233 232 70 100 119 63 348 200 111 Entered New Map 2406 | . . 16 . . 59 22 5 14 . 16 2 2 . 56 243 72 208 1134 53 111 63 232 . . 59 3 . . 36 Time Decay 3165 | 10 20 14 . 152 . 308 313 . 103 185 82 . 134 254 190 206 96 100 130 100 120 . 30 40 40 50 318 140 30 Lost Part 532 | . . . . 10 . 117 30 . 10 10 60 . . 10 20 . . . . . 10 . 30 60 20 10 30 60 45 Lost Ally 124 | . . . . 20 . 17 17 . . . . . . . 20 . . . . . 40 . 10 . . . . . . Squads Dispatched 20 | . 2 . . . . 4 . . 2 . . . . 1 . . . . 1 . . . . 3 1 . 1 2 3 Investigation 3 | . 1 . . . . . . . 1 . . . . . . . . . . . . . . 1 . . . . . Extermination 3 | . . . . . . . . . 1 . . . . . . . . . . . . . . . . . . 1 1 Reinforcement 13 | . 1 . . . . 4 . . . . . . . 1 . . . . 1 . . . . 2 1 . . 1 2 Assault . | . . . . . . . . . . . . . . . . . . . . . . . . . . . . . . Garrison . | . . . . . . . . . . . . . . . . . . . . . . . . . . . . . . Intercept 1 | . . . . . . . . . . . . . . . . . . . . . . . . . . . 1 . . Searches Triggered . | . . . . . . . . . . . . . . . . . . . . . . . . . . . . . . Construction Impeded 2 | . . . . . . 1 . . . . . . . 1 . . . . . . . . . . . . . . . Haulers Reinforced 1 | . . . . . . . . . . . . . . . . . . . 1 . . . . . . . . . . Active Scanning Responses . | . . . . . . . . . . . . . . . . . . . . . . . . . . . . . . Cargo Convoy Interrupts . | . . . . . . . . . . . . . . . . . . . . . . . . . . . . . . Stealth | -11 -10 -10 -10 -9 -8 -8 -8 -8 -6 -6 -6 -6 -5 -5 -5 -5 -5 -4 -4 -4 -4 -4 -3 -3 -3 -3 -2 -2 -2 --------- Run | Yrd Mat Min Exi Min Mat Sto Rec Scr Fac Low Low Dat Pro Fac Upp Upp War Pro Fac Upp Upp Zhi Pro Res Arm Lab Res Qua Sec Distress Signals 7 | . . . . . . 1 . . . . . . . . . . 1 . . . . . . . . . 5 . . Communications Jammed 9 | . . . . . . . . . . . . . . . . . . . . . . . . . . . . . 9 Distress Signals 9 | . . . . . . . . . . . . . . . . . . . . . . . . . . . . . 9 Times Spotted 288 | . 1 4 . 10 . 18 2 . 10 7 12 4 9 15 14 4 70 9 11 8 8 . 7 14 6 4 10 13 18 Peak Tracking Total 13 | . 1 2 . 4 . 4 1 . 4 4 4 4 5 5 5 4 13 5 5 5 4 . 4 8 5 1 4 7 5 Tactical Retreats 18 | . . . . . . 2 1 . . 4 . . . . . . . 1 . . 1 . . 2 . . 2 5 . Traps | -11 -10 -10 -10 -9 -8 -8 -8 -8 -6 -6 -6 -6 -5 -5 -5 -5 -5 -4 -4 -4 -4 -4 -3 -3 -3 -3 -2 -2 -2 ------- Run | Yrd Mat Min Exi Min Mat Sto Rec Scr Fac Low Low Dat Pro Fac Upp Upp War Pro Fac Upp Upp Zhi Pro Res Arm Lab Res Qua Sec Traps Triggered 6 | . 2 . . . . . . . 2 . . . . . . . . . . . . . . 1 . . . . 1 Indirectly . | . . . . . . . . . . . . . . . . . . . . . . . . . . . . . . Trap Hack Attempts . | . . . . . . . . . . . . . . . . . . . . . . . . . . . . . . Triggered . | . . . . . . . . . . . . . . . . . . . . . . . . . . . . . . Disarmed . | . . . . . . . . . . . . . . . . . . . . . . . . . . . . . . Reprogrammed . | . . . . . . . . . . . . . . . . . . . . . . . . . . . . . . Reused . | . . . . . . . . . . . . . . . . . . . . . . . . . . . . . . Traps Extracted . | . . . . . . . . . . . . . . . . . . . . . . . . . . . . . . Installed . | . . . . . . . . . . . . . . . . . . . . . . . . . . . . . . Triggered . | . . . . . . . . . . . . . . . . . . . . . . . . . . . . . . Machines | -11 -10 -10 -10 -9 -8 -8 -8 -8 -6 -6 -6 -6 -5 -5 -5 -5 -5 -4 -4 -4 -4 -4 -3 -3 -3 -3 -2 -2 -2 ---------- Run | Yrd Mat Min Exi Min Mat Sto Rec Scr Fac Low Low Dat Pro Fac Upp Upp War Pro Fac Upp Upp Zhi Pro Res Arm Lab Res Qua Sec Machines Disabled 34 | . . . . 1 . 1 3 . . . . . . 15 . . 1 . 1 . . . . 1 . 5 . 5 1 Max in Single Turn 9 | . . . . 1 . 1 2 . . . . . . 9 . . 1 . 1 . . . . 1 . 2 . 1 1 Machines Repaired . | . . . . . . . . . . . . . . . . . . . . . . . . . . . . . . Machines Dismantled . | . . . . . . . . . . . . . . . . . . . . . . . . . . . . . . Machines Sabotaged . | . . . . . . . . . . . . . . . . . . . . . . . . . . . . . . Overloaded Fab Kills . | . . . . . . . . . . . . . . . . . . . . . . . . . . . . . . Hacking | -11 -10 -10 -10 -9 -8 -8 -8 -8 -6 -6 -6 -6 -5 -5 -5 -5 -5 -4 -4 -4 -4 -4 -3 -3 -3 -3 -2 -2 -2 --------- Run | Yrd Mat Min Exi Min Mat Sto Rec Scr Fac Low Low Dat Pro Fac Upp Upp War Pro Fac Upp Upp Zhi Pro Res Arm Lab Res Qua Sec Machines Accessed 46 | . 2 . 2 . . 2 13 . 4 . 1 3 . 3 . . 4 . 2 . . 4 . 1 1 3 . 1 . Terminals 19 | . 1 . . . . 2 6 . 2 . . . . 3 . . . . 2 . . . . 1 1 . . 1 . Fabricators . | . . . . . . . . . . . . . . . . . . . . . . . . . . . . . . Repair Stations . | . . . . . . . . . . . . . . . . . . . . . . . . . . . . . . Recycling Units 10 | . 1 . . . . . 7 . 2 . . . . . . . . . . . . . . . . . . . . Scanalyzers . | . . . . . . . . . . . . . . . . . . . . . . . . . . . . . . Garrison Access . | . . . . . . . . . . . . . . . . . . . . . . . . . . . . . . Total Hacks 141 | . 4 . 2 . . 2 37 . 6 . 1 25 . 6 . . 6 . 7 . . 13 . 3 2 25 . 2 . Successful 118 | . 4 . 2 . . 1 29 . 4 . 1 25 . 2 . . 6 . 3 . . 13 . 1 . 25 . 2 . Failed 23 | . . . . . . 1 8 . 2 . . . . 4 . . . . 4 . . . . 2 2 . . . . Catastrophic 8 | . . . . . . . 3 . . . . . . 2 . . . . 3 . . . . . . . . . . Database Lockouts . | . . . . . . . . . . . . . . . . . . . . . . . . . . . . . . Manual 45 | . 3 . 1 . . 2 27 . 4 . . . . 6 . . 1 . 1 . . . . . . . . . . Terminals 49 | . 2 . . . . 2 22 . 3 . . . . 6 . . . . 7 . . . . 3 2 . . 2 . Fabricators . | . . . . . . . . . . . . . . . . . . . . . . . . . . . . . . Repair Stations . | . . . . . . . . . . . . . . . . . . . . . . . . . . . . . . Recycling Units 20 | . 2 . . . . . 15 . 3 . . . . . . . . . . . . . . . . . . . . Scanalyzers . | . . . . . . . . . . . . . . . . . . . . . . . . . . . . . . Garrison Access . | . . . . . . . . . . . . . . . . . . . . . . . . . . . . . . Terminal Hacks 85 | . . . 2 . . 1 4 . 1 . 1 25 . 1 . . 6 . 3 . . 13 . 1 . 25 . 2 . Record 41 | . . . 1 . . . . . . . . 6 . . . . 5 . . . . 5 . . . 24 . . . Part Schematic 16 | . . . . . . . 2 . . . . 10 . . . . . . . . . 4 . . . . . . . Robot Schematic 7 | . . . . . . . . . . . . 6 . . . . . . . . . . . . . . . 1 . Prototype ID Bank 7 | . . . . . . . . . . . . 3 . . . . . . . . . 4 . . . . . . . Open Door 3 | . . . . . . 1 . . . . 1 . . . . . 1 . . . . . . . . . . . . Branch Access Points 4 | . . . . . . . . . 1 . . . . 1 . . . . 1 . . . . 1 . . . . . Terminal Index 1 | . . . . . . . . . . . . . . . . . . . . . . . . . . . . 1 . Registered Components 1 | . . . . . . . . . . . . . . . . . . . 1 . . . . . . . . . . Zone Layout 3 | . . . . . . . 2 . . . . . . . . . . . 1 . . . . . . . . . . Proto ID Catalog 1 | . . . 1 . . . . . . . . . . . . . . . . . . . . . . . . . . Release Object 1 | . . . . . . . . . . . . . . . . . . . . . . . . . . 1 . . . Fabricator Hacks . | . . . . . . . . . . . . . . . . . . . . . . . . . . . . . . Repair Station Hacks . | . . . . . . . . . . . . . . . . . . . . . . . . . . . . . . Recycling Unit Hacks 10 | . 1 . . . . . 8 . 1 . . . . . . . . . . . . . . . . . . . . Retrieve Components 10 | . 1 . . . . . 8 . 1 . . . . . . . . . . . . . . . . . . . . Scanalyzer . | . . . . . . . . . . . . . . . . . . . . . . . . . . . . . . Garrison Access Hacks . | . . . . . . . . . . . . . . . . . . . . . . . . . . . . . . Unauthorized Hacks 23 | . 3 . . . . . 17 . 2 . . . . 1 . . . . . . . . . . . . . . . Terminals 14 | . 2 . . . . . 10 . 1 . . . . 1 . . . . . . . . . . . . . . . Botnet 6 | . 1 . . . . . 4 . . . . . . 1 . . . . . . . . . . . . . . . Skim 8 | . 1 . . . . . 6 . 1 . . . . . . . . . . . . . . . . . . . . Fabricators . | . . . . . . . . . . . . . . . . . . . . . . . . . . . . . . Repair Stations . | . . . . . . . . . . . . . . . . . . . . . . . . . . . . . . Recycling Units 9 | . 1 . . . . . 7 . 1 . . . . . . . . . . . . . . . . . . . . Tunnel 9 | . 1 . . . . . 7 . 1 . . . . . . . . . . . . . . . . . . . . Scanalyzers . | . . . . . . . . . . . . . . . . . . . . . . . . . . . . . . Garrison Access . | . . . . . . . . . . . . . . . . . . . . . . . . . . . . . . Data Cores Recovered 2 | . . . . . . . . . . . . . . 1 . . . . . . . . . . . . . 1 . Used 1 | . . . . . . . . . . . . . . 1 . . . . . . . . . . . . . . . Hacking Detections 18 | . 2 . . . . 1 6 . 3 . . . . 3 . . . . 1 . . . . 1 1 . . . . Full Trace Events 1 | . . . . . . . . . . . . . . . . . . . . . . . . 1 . . . . . Feedback Events 1 | . . . . . . . . . . . . . . . . . . . . . . . . 1 . . . . . Hackware Fried 1 | . . . . . . . . . . . . . . . . . . . . . . . . 1 . . . . . Feedback Blocked . | . . . . . . . . . . . . . . . . . . . . . . . . . . . . . . Robot Schematics Acquired 7 | . . . . . . . . . . . . 6 . . . . . . . . . . . . . . . 1 . Robots Built . | . . . . . . . . . . . . . . . . . . . . . . . . . . . . . . Authchips . | . . . . . . . . . . . . . . . . . . . . . . . . . . . . . . Time . | . . . . . . . . . . . . . . . . . . . . . . . . . . . . . . Total Robot Build Rating . | . . . . . . . . . . . . . . . . . . . . . . . . . . . . . . Part Schematics Acquired 16 | . . . . . . . 2 . . . . 10 . . . . . . . . . 4 . . . . . . . Parts Built . | . . . . . . . . . . . . . . . . . . . . . . . . . . . . . . Authchips . | . . . . . . . . . . . . . . . . . . . . . . . . . . . . . . Time . | . . . . . . . . . . . . . . . . . . . . . . . . . . . . . . Total Part Build Rating . | . . . . . . . . . . . . . . . . . . . . . . . . . . . . . . Parts Repaired . | . . . . . . . . . . . . . . . . . . . . . . . . . . . . . . Time . | . . . . . . . . . . . . . . . . . . . . . . . . . . . . . . Parts Recycled . | . . . . . . . . . . . . . . . . . . . . . . . . . . . . . . Recycled Matter . | . . . . . . . . . . . . . . . . . . . . . . . . . . . . . . Retrieved Matter . | . . . . . . . . . . . . . . . . . . . . . . . . . . . . . . Retrieved Components 24 | . 2 . . . . . 19 . 3 . . . . . . . . . . . . . . . . . . . . Parts Scanalyzed . | . . . . . . . . . . . . . . . . . . . . . . . . . . . . . . Part Schematics Acquired . | . . . . . . . . . . . . . . . . . . . . . . . . . . . . . . Parts Damaged . | . . . . . . . . . . . . . . . . . . . . . . . . . . . . . . Bothacking | -11 -10 -10 -10 -9 -8 -8 -8 -8 -6 -6 -6 -6 -5 -5 -5 -5 -5 -4 -4 -4 -4 -4 -3 -3 -3 -3 -2 -2 -2 ------------ Run | Yrd Mat Min Exi Min Mat Sto Rec Scr Fac Low Low Dat Pro Fac Upp Upp War Pro Fac Upp Upp Zhi Pro Res Arm Lab Res Qua Sec Used RIF Installer . | . . . . . . . . . . . . . . . . . . . . . . . . . . . . . . Robots Hacked 2 | . . . . . . . . . . . . . . . . . . . . . . . . . . 1 1 . . Non-combat . | . . . . . . . . . . . . . . . . . . . . . . . . . . . . . . Combat 1 | . . . . . . . . . . . . . . . . . . . . . . . . . . . 1 . . Robot Hacks Applied 1 | . . . . . . . . . . . . . . . . . . . . . . . . . . . 1 . . parse_system 1 | . . . . . . . . . . . . . . . . . . . . . . . . . . . 1 . . Manual 2 | . . . . . . . . . . . . . . . . . . . . . . . . . . 1 1 . . Relay Couplers Released . | . . . . . . . . . . . . . . . . . . . . . . . . . . . . . . Fabnet Peak Effective % . | . . . . . . . . . . . . . . . . . . . . . . . . . . . . . . Robots Rewired 7 | . . . . . . . 5 . . . . . . . . . 1 . . 1 . . . . . . . . . Allies Hacked . | . . . . . . . . . . . . . . . . . . . . . . . . . . . . . . Hacks Repelled . | . . . . . . . . . . . . . . . . . . . . . . . . . . . . . . Allies | -11 -10 -10 -10 -9 -8 -8 -8 -8 -6 -6 -6 -6 -5 -5 -5 -5 -5 -4 -4 -4 -4 -4 -3 -3 -3 -3 -2 -2 -2 -------- Run | Yrd Mat Min Exi Min Mat Sto Rec Scr Fac Low Low Dat Pro Fac Upp Upp War Pro Fac Upp Upp Zhi Pro Res Arm Lab Res Qua Sec Total Allies 15 | . . . . 4 . . 5 . . . . 2 . . . . 1 . . 1 . . . 2 . . . . . Largest Group 5 | . . . . 4 2 2 5 . . . . 2 2 2 2 1 2 2 2 3 3 1 1 1 . . . . . Highest-Rated Group 201 | . . . . 71 24 24 78 . . . . 192 192 192 192 96 160 160 160 201 201 64 64 142 . . . . . Highest-Rated Ally 142 | . . . . 31 16 16 34 . . . . 96 96 96 96 96 96 96 96 89 89 64 64 142 . . . . . Total Orders . | . . . . . . . . . . . . . . . . . . . . . . . . . . . . . . Ally Attacks 200 | . . . . 39 . 10 4 . . . . 2 18 37 19 4 15 7 11 14 8 . . 12 . . . . . Total Damage 6661 | . . . . 348 . 76 107 . . . . 66 629 2098 684 136 362 266 460 595 197 . . 637 . . . . . Kills 47 | . . . . 7 . . 1 . . . . 1 7 8 4 2 2 3 3 5 1 . . 3 . . . . . Allies Corrupted . | . . . . . . . . . . . . . . . . . . . . . . . . . . . . . . Allies Melted . | . . . . . . . . . . . . . . . . . . . . . . . . . . . . . . Field Lobotomies 4 | . . . . . . . . . . . . 2 . . . . . . . . . . . 2 . . . . . Intel | -11 -10 -10 -10 -9 -8 -8 -8 -8 -6 -6 -6 -6 -5 -5 -5 -5 -5 -4 -4 -4 -4 -4 -3 -3 -3 -3 -2 -2 -2 ------- Run | Yrd Mat Min Exi Min Mat Sto Rec Scr Fac Low Low Dat Pro Fac Upp Upp War Pro Fac Upp Upp Zhi Pro Res Arm Lab Res Qua Sec Active Infowar (turns) 9951 | 36 142 368 559 956 19 155 690 1108 547 534 544 1 . 350 395 436 1433 246 274 185 237 108 290 157 . . . 69 112 Optics 4131 | . . . . . . . . . . 529 540 . . 348 395 436 1433 246 204 . . . . . . . . . . Sensors 3824 | . . . . 1 . . 690 1107 547 436 . . . . . . . . 70 185 237 108 290 153 . . . . . Seismic 2234 | 36 142 368 559 955 19 155 . . . . . . . . . . . . . . . . . . . . . . . Decoding 133 | . . . . . . . . . . . 133 . . . . . . . . . . . . . . . . . . T.N.C. 3413 | . . . . . . . 686 1108 547 534 538 . . . . . . . . . . . . . . . . . . Cloaking 151 | . . . . . . . . . . . . . . . 29 . . . . . . . . 122 . . . . . Jamming 1678 | . . . . . . . . 1 470 534 368 1 . 2 . . . . . . . . . 121 . . . 69 112 Robot Analysis Total 151 | . . . . . . . . . . . . 151 . . . . . . . . . . . . . . . . . Derelict Logs Recovered 11 | . . . . 1 . . . . . 1 1 . 2 . 2 2 . . . . 2 . . . . . . . . Drone Launches . | . . . . . . . . . . . . . . . . . . . . . . . . . . . . . . Drone Recoveries . | . . . . . . . . . . . . . . . . . . . . . . . . . . . . . . Exploration | -11 -10 -10 -10 -9 -8 -8 -8 -8 -6 -6 -6 -6 -5 -5 -5 -5 -5 -4 -4 -4 -4 -4 -3 -3 -3 -3 -2 -2 -2 ------------- Run | Yrd Mat Min Exi Min Mat Sto Rec Scr Fac Low Low Dat Pro Fac Upp Upp War Pro Fac Upp Upp Zhi Pro Res Arm Lab Res Qua Sec Turns Passed 14597 | 219 142 368 559 957 19 711 1288 1108 547 534 580 202 293 545 395 436 1433 246 275 209 243 110 290 201 96 917 1164 296 214 Spaces Moved 9859 | 125 82 167 346 628 11 246 525 560 345 287 329 154 197 287 294 340 1062 257 333 157 300 147 372 258 147 500 769 394 240 Core 274 | 18 . . . . . 65 176 . . . . 15 . . . . . . . . . . . . . . . . . Treads 1085 | 101 82 167 346 313 . 76 . . . . . . . . . . . . . . . . . . . . . . . Legs 2191 | . . . . . . . . . . . . 57 197 31 161 335 509 . . . . . . . . 289 612 . . Wheels 3039 | 6 . . . 315 11 105 285 560 345 287 234 . . 256 133 5 497 . . . . . . . . . . . . Hover 3191 | . . . . . . . . . . . 94 68 . . . . 56 257 333 157 300 147 372 258 147 211 157 394 240 Flight 79 | . . . . . . . 64 . . . 1 14 . . . . . . . . . . . . . . . . . Fastest Speed 35 | 50 160 160 160 95 95 96 35 123 120 135 60 40 120 115 115 120 42 42 43 43 43 43 43 41 54 63 53 47 51 Average Speed 115 | 141 160 160 160 127 95 194 217 194 134 151 122 87 126 115 117 121 115 42 43 45 45 45 43 43 55 137 111 50 69 Slowest Speed 400 | 160 160 160 160 160 96 350 400 215 215 160 200 190 190 120 190 190 130 42 43 121 121 121 44 59 133 190 190 59 115 Overloaded Moves . | . . . . . . . . . . . . . . . . . . . . . . . . . . . . . . Propulsion Burnouts . | . . . . . . . . . . . . . . . . . . . . . . . . . . . . . . Robots Hopped . | . . . . . . . . . . . . . . . . . . . . . . . . . . . . . . Potential Cave-ins 20 | . . . . . . . . . . . . . . 6 . . . . . . . . . . . . . 14 . Cave-ins Triggered . | . . . . . . . . . . . . . . . . . . . . . . . . . . . . . . Teleports 4 | . . . . . . . . . . . . . . . . . . . . . . . . . 1 . . . 3 Exploration Rate (%) 45 | 7 31 36 68 99 3 53 87 53 10 45 50 77 37 14 48 58 93 54 8 36 41 60 65 11 13 98 31 50 33 Regions Visited 29 Branch Regions 22 Pre-discovered Areas 33 | . 1 . 1 1 . . 9 . 1 . . 16 . . 1 . . . . . . 3 . . . . . . . Known Exits Taken 14 | . . . . . . . 1 . 1 . . . . 1 . . . 1 1 1 1 1 1 1 1 1 1 1 . Unknown Exits Taken 15 | 1 1 1 1 1 1 1 . 1 . 1 1 1 1 . 1 1 1 . . . . . . . . . . . . Scrap Searched 18 | . . . . 2 . . . 4 . 1 1 . 1 . . 3 . 2 . 1 . . 3 . . . . . . Spaces Dug 72 | . . . . . . 9 . . . . . . . 4 . . . . 5 . . . . . . 12 . 42 . Terrain Destroyed 480 | . . . . . . 29 16 . 5 2 1 . . 50 4 3 223 2 6 1 . . . . . 28 55 55 . Melee 6 | . . . . . . . . . . . . . . . . . . . . . . . . . . . . 6 . Projectile 48 | . . . . . . . . . 5 2 1 . . 15 4 3 . 2 6 1 . . . . . 5 1 3 . AOE 426 | . . . . . . 29 16 . . . . . . 35 . . 223 . . . . . . . . 23 54 46 . Terrain Rammed . | . . . . . . . . . . . . . . . . . . . . . . . . . . . . . . Walls Destroyed . | . . . . . . . . . . . . . . . . . . . . . . . . . . . . . . Machines Disabled . | . . . . . . . . . . . . . . . . . . . . . . . . . . . . . . Actions | -11 -10 -10 -10 -9 -8 -8 -8 -8 -6 -6 -6 -6 -5 -5 -5 -5 -5 -4 -4 -4 -4 -4 -3 -3 -3 -3 -2 -2 -2 --------- Run | Yrd Mat Min Exi Min Mat Sto Rec Scr Fac Low Low Dat Pro Fac Upp Upp War Pro Fac Upp Upp Zhi Pro Res Arm Lab Res Qua Sec Total 12519 | 150 93 256 353 746 19 359 660 578 400 358 484 223 234 466 335 357 1241 386 440 279 390 192 493 336 161 710 1076 458 286 Wait 1504 | . 11 83 . 88 6 18 66 . 8 48 92 13 23 108 . . 48 113 59 103 56 34 106 45 3 134 228 8 3 Move 9831 | 124 81 166 345 627 10 245 524 559 345 286 328 153 196 286 293 339 1061 256 332 156 299 146 371 257 146 499 768 393 240 Hop . | . . . . . . . . . . . . . . . . . . . . . . . . . . . . . . Pick Up 222 | 9 1 1 4 2 . 5 6 10 12 3 13 17 1 9 8 1 25 3 13 . 10 3 3 6 2 23 15 14 3 Fast Attach 52 | 2 . . . 2 . . 7 . . . . 2 4 3 3 5 8 2 1 . . 2 . . . 1 6 2 2 Attach 179 | 5 . . . 4 3 8 5 4 6 3 12 10 . 3 2 1 19 . 7 2 3 1 3 12 7 14 19 9 17 Detach 44 | . . . 2 1 . 1 2 . . . . 3 . . . . 7 . . 3 . 1 . 2 . 5 8 5 4 Swap 41 | 2 . . 1 1 . . . 3 . . 1 . . 9 2 2 7 1 2 . 2 . . 2 1 2 1 1 1 Drop 161 | . . . 1 2 . 1 4 2 . 2 16 10 1 7 12 6 31 3 4 . 4 5 1 1 2 12 21 3 10 Fire 376 | 8 . 6 . 19 . 81 6 . 13 16 9 14 9 41 15 3 31 8 22 13 16 . 9 7 . 20 7 3 . Melee 37 | . . . . . . . . . . . 13 1 . . . . . . . . . . . . . . . 20 3 Ram 20 | . . . . . . . 13 . . . . . . . . . . . . . . . . 4 . . . . 3 Kick 3 | . . . . . . . . . . . . . . . . . . . . . . . . . . . 3 . . Crush . | . . . . . . . . . . . . . . . . . . . . . . . . . . . . . . Escape Stasis 16 | . . . . . . . . . 16 . . . . . . . . . . . . . . . . . . . . Rewire 33 | . . . . . . . 27 . . . . . . . . . 4 . . 2 . . . . . . . . . Trap . | . . . . . . . . . . . . . . . . . . . . . . . . . . . . . . Miscellaneous . | . . . . . . . . . . . . . . . . . . . . . . . . . . . . . . Route ------- -11/Scrapyard -10/Materials -10/Mines -10/Exiles -9/Mines (discovered 2 exits: [*Mat x2]) -8/Materials -8/Storage -8/Recycling (discovered 2 exits: *Fac / *Scr) -8/Scraptown -6/Factory (discovered 4 exits: *Low x2 / *Ext x2) -6/Lower Caves -6/Lower Caves -6/Data Miner -5/Proximity Caves -5/Factory (discovered 3 exits: Fac / *Upp x2) -5/Upper Caves -5/Upper Caves -5/Warlord -4/Proximity Caves -4/Factory (discovered 2 exits: *Upp x2) -4/Upper Caves -4/Upper Caves -4/Zhirov -3/Proximity Caves -3/Research (discovered 3 exits: *Arm / *Tes x2) -3/Armory -3/Lab -2/Research (discovered 2 exits: *Qua x2) -2/Quarantine (discovered 2 exits: *Sec / *Frg) -2/Section 7 History --------- Turn | Location | Event 11 | -11/Scrapyard | Discovered new exit (range 16) 220 | -11/Scrapyard | Entered Materials 316 | -10/Materials | Build established: Mutant 352 | -10/Materials | Discovered new exit (range 6) 362 | -10/Materials | Entered Mines 365 | -10/Mines | Assembled infested the area 376 | -10/Mines | Met a Derelict bent on vengeance 401 | -10/Mines | Met 8R-AWN 464 | -10/Mines | Found a damaged Exp. Sensor Array with a note attached 467 | -10/Mines | Found Prototype Device 724 | -10/Mines | Discovered new exit (range 5) 730 | -10/Mines | Entered Exiles 781 | -10/Exiles | Welcomed by 8R-AWN 800 | -10/Exiles | Met EX-HEX 872 | -10/Exiles | Met EX-DEC 898 | -10/Exiles | Learned location of Zion (-7) 1044 | -10/Exiles | Met EX-BIN 1067 | -10/Exiles | Aligned with FarCom system 1068 | -10/Exiles | Given EX-Vault access code 1105 | -10/Exiles | Opened EX-Vault 1118 | -10/Exiles | Found XL Autogun Array 1124 | -10/Exiles | Found Modified TNC 1141 | -10/Exiles | Found Field Lobotomy Kit 1177 | -10/Exiles | Warned to stay clear of 0b10 Research branches 1276 | -10/Exiles | Discovered new exit (range 10) 1289 | -10/Exiles | Stole three prototypes: Modified TNC, XL Autogun Array, Field Lobotomy Kit 1289 | -10/Exiles | Entered Mines 1436 | -9/Mines | Received a Rocket Launcher from a helpful Derelict 1446 | -9/Mines | Discovered new exit (range 5) 1455 | -9/Mines | Identified Exp. Sensor Array 1514 | -9/Mines | Received a Mining Laser from a helpful Derelict 1701 | -9/Mines | Assisted by bots powering up and referring to "LRC-V3" 1866 | -9/Mines | Discovered new exit (range 10) 2246 | -9/Mines | Entered Materials 2246 | -8/Materials | Accompanied by 2 allies 2246 | -8/Materials | Evolved 4 slots: Propulsion x1, Utility x2, Weapon x1 2246 | -8/Materials | Discovered new exit (range 8) 2265 | -8/Materials | Entered Storage 2265 | -8/Storage | Accompanied by 2 allies 2267 | -8/Storage | FarCom data flow suspended 2372 | -8/Storage | Lost 4 parts (1p1n1u1w) 2463 | -8/Storage | Lost 4 parts (1p1u2w) 2729 | -8/Storage | Lost 3 parts (2n1w) 2736 | -8/Storage | Core integrity fell below 50% 2948 | -8/Storage | Used back door to open Recycling access 2948 | -8/Storage | Discovered new exit (range 5) 2976 | -8/Storage | Entered Recycling 3483 | -8/Recycling | Lost 5 allies 3518 | -8/Recycling | Lost 3 parts (1p1n1u) 4041 | -8/Recycling | Discovered new exit (range 16) 4083 | -8/Recycling | Learned location of 1 exit from Storage 4160 | -8/Recycling | Scanned before Scraplab entrance 4181 | -8/Recycling | Learned 4 Lower Caves zone layouts 4190 | -8/Recycling | Entered Scraplab 4196 | -8/Recycling | Learned location of 1 exit from Extension 4202 | -8/Recycling | Identified exit to Scraptown 4220 | -8/Recycling | Learned 2 Storage zone layouts 4264 | -8/Recycling | Entered Scraptown 4264 | -8/Scraptown | System corruption cleaned by C-Scrubber 4292 | -8/Scraptown | Heard Great Nut preacher, LISTEN AND RECITE! 4561 | -8/Scraptown | Visited CR-KLE's Repair Center 4581 | -8/Scraptown | Visited Cyclists 4607 | -8/Scraptown | Visited Assassins FH 4625 | -8/Scraptown | Visited Observation Area 4667 | -8/Scraptown | Visited Comm Corps 5098 | -8/Scraptown | Discovered new exit (range 11) 5245 | -8/Scraptown | CR-KLE repaired 5 parts 5372 | -8/Scraptown | Entered Factory 5372 | -6/Factory | Evolved 4 slots: Propulsion x1, Utility x2, Weapon x1 5546 | -6/Factory | Build established: Skirmisher 5818 | -6/Factory | Discovered new exit (range 15) 5888 | -6/Factory | Identified exit to Lower Caves 5888 | -6/Factory | Identified exit to Extension 5919 | -6/Factory | Entered Lower Caves 6357 | -6/Lower Caves | Learned location of 1 exit from Factory 6391 | -6/Lower Caves | Discovered new exit (range 16) 6453 | -6/Lower Caves | Entered another Lower Caves area 6848 | -6/Lower Caves | Lost 4 parts (1p1n1u1w) 6976 | -6/Lower Caves | Learned Factory security intel 6982 | -6/Lower Caves | Discovered new exit (range 22) 6988 | -6/Lower Caves | Spotted SJ-1E1(f) 6988 | -6/Lower Caves | Spotted AK-3ZM(f) 6990 | -6/Lower Caves | Encountered a Master Thief 6990 | -6/Lower Caves | Encountered a Master Thief 6990 | -6/Lower Caves | Spotted 0A-ZW7(f) 6991 | -6/Lower Caves | Encountered a Master Thief 6994 | -6/Lower Caves | Spotted TL-HTG(f) 6994 | -6/Lower Caves | Nuclear Pulse Thruster stolen by Master Thief 6995 | -6/Lower Caves | Encountered a Master Thief 7000 | -6/Lower Caves | Power Sword stolen by Master Thief 7002 | -6/Lower Caves | Energy Well stolen by Master Thief 7008 | -6/Lower Caves | 0b10 Decoder Chip [Looter] stolen by Master Thief 7030 | -6/Lower Caves | Lost 4 parts (4u) 7033 | -6/Lower Caves | Entered Data Miner 7033 | -6/Data Miner | Discovered new exit (range 6) 7045 | -6/Data Miner | Met Data Miner 7055 | -6/Data Miner | Learned location of Section 7 (-2) 7055 | -6/Data Miner | Acquired the access code to Warlord's prototype stash 7064 | -6/Data Miner | Received God Mode back door access code from Data Miner 7083 | -6/Data Miner | Interfaced with the Data Conduit 7108 | -6/Data Miner | Core integrity fell below 50% 7110 | -6/Data Miner | Assimilated Enhanced Grunt with FLK Orb 7113 | -6/Data Miner | Assimilated Enhanced Grunt with FLK Orb 7129 | -6/Data Miner | Found Exp. Thermal Shield 7235 | -6/Data Miner | Entered Proximity Caves 7235 | -5/Proximity Caves | Accompanied by 2 allies 7425 | -5/Proximity Caves | Learned Factory trap positions 7438 | -5/Proximity Caves | Learned 4 Factory zone layouts 7463 | -5/Proximity Caves | Discovered new exit (range 10) 7466 | -5/Proximity Caves | Attracted the attention of an 0b10 checkpoint 7528 | -5/Proximity Caves | Entered Factory 7528 | -5/Factory | Accompanied by 2 allies 7528 | -5/Factory | Evolved 2 slots: Power x1, Propulsion x1 7529 | -5/Factory | Identified exit to Upper Caves 7530 | -5/Factory | Identified exit to Factory 7531 | -5/Factory | Loaded intel: 103 trap records 7533 | -5/Factory | Loaded intel: 284 machine locations 7596 | -5/Factory | Build established: Scavenger-Tank 7629 | -5/Factory | Spotted B-75 Beast 7654 | -5/Factory | Destroyed B-75 Beast 8073 | -5/Factory | Entered Upper Caves 8073 | -5/Upper Caves | Accompanied by 2 allies 8073 | -5/Upper Caves | Spotted EP-RNP(f) 8073 | -5/Upper Caves | Spotted 4X-XTO(f) 8074 | -5/Upper Caves | Allies destroyed EP-RNP(f) 8075 | -5/Upper Caves | Encountered a Master Thief 8076 | -5/Upper Caves | Exp. Thermal Shield stolen by Master Thief 8077 | -5/Upper Caves | Destroyed 4X-XTO(f) 8151 | -5/Upper Caves | Attracted the attention of an 0b10 checkpoint 8428 | -5/Upper Caves | Learned Factory security intel 8458 | -5/Upper Caves | Discovered new exit (range 8) 8468 | -5/Upper Caves | Entered another Upper Caves area 8468 | -5/Upper Caves | Accompanied by 1 ally 8594 | -5/Upper Caves | Learned 4 Factory zone layouts 8835 | -5/Upper Caves | Learned Factory terminal intel 8865 | -5/Upper Caves | Discovered new exit (range 13) 8904 | -5/Upper Caves | Entered Warlord 8904 | -5/Warlord | Accompanied by 1 ally 9143 | -5/Warlord | Found Prototype Device 9143 | -5/Warlord | Identified Minesniffer Drone Bay 9261 | -5/Warlord | Learned Factory fabricator intel 9261 | -5/Warlord | Learned Factory repair station intel 9261 | -5/Warlord | Learned 4 Armory zone layouts 9261 | -5/Warlord | Learned 4 Quarantine zone layouts 9262 | -5/Warlord | Learned Testing emergency access door positions 9362 | -5/Warlord | Received a Watcher feed algorithm from an ecstatic Tinkerer 9369 | -5/Warlord | Met Warlord 9394 | -5/Warlord | Warlord's base attacked by MAIN.C 9549 | -5/Warlord | Opened Warlord's prototype stash 9579 | -5/Warlord | Found Vortex Chain Reactor 9597 | -5/Warlord | Found Exp. Targeting Computer 9604 | -5/Warlord | Found Prototype Hackware 9703 | -5/Warlord | Found Prototype Energy Cannon 9705 | -5/Warlord | Found Prototype Energy Cannon 9709 | -5/Warlord | Found Prototype Piercing Weapon 9709 | -5/Warlord | Identified Vortex Lance 9710 | -5/Warlord | Identified Vortex Cannon (x2) 9722 | -5/Warlord | Found Vortex Lance 9744 | -5/Warlord | Warlord forces counterattacked 9828 | -5/Warlord | Found Prototype Special Weapon 9831 | -5/Warlord | Found Prototype Special Weapon 9833 | -5/Warlord | Found Prototype Special Weapon 9836 | -5/Warlord | Found Prototype Special Weapon 9838 | -5/Warlord | Found Prototype Special Weapon 9841 | -5/Warlord | Found Prototype Special Weapon 9912 | -5/Warlord | Identified RU-N14's Throwing Claymores v3 (x6) 9926 | -5/Warlord | P-80 Master assimilated allied L5-Q1Z(b) 9958 | -5/Warlord | Lost 3 allies 9975 | -5/Warlord | Destroyed 15 combat bots 10069 | -5/Warlord | Warlord base infiltrated, sounded retreat 10128 | -5/Warlord | Spotted Striker 10143 | -5/Warlord | Lost 7 allies 10175 | -5/Warlord | Spotted Executioner 10178 | -5/Warlord | Destroyed Executioner 10186 | -5/Warlord | Spotted Executioner 10195 | -5/Warlord | Destroyed Executioner 10216 | -5/Warlord | Destroyed 10 combat bots 10226 | -5/Warlord | Spotted B-86 Titan 10235 | -5/Warlord | Spotted B-75 Beast 10255 | -5/Warlord | Destroyed 8 combat bots 10269 | -5/Warlord | Found Prototype Launcher 10270 | -5/Warlord | Identified Chain Missile Launcher 10295 | -5/Warlord | Discovered new exit (range 12) 10295 | -5/Warlord | Spotted Executioner 10321 | -5/Warlord | Destroyed 9 combat bots 10337 | -5/Warlord | Entered Proximity Caves 10337 | -4/Proximity Caves | Accompanied by 2 allies 10344 | -4/Proximity Caves | Lost 3 allies 10425 | -4/Proximity Caves | Found DCF Scrap (12 items) 10509 | -4/Proximity Caves | Build established: Scavenger-Mutant 10550 | -4/Proximity Caves | Discovered exit to Factory (range 7) 10583 | -4/Proximity Caves | Entered Factory 10583 | -4/Factory | Accompanied by 2 allies 10583 | -4/Factory | Evolved 2 slots: Propulsion x1, Utility x1 10586 | -4/Factory | Loaded intel: 321 machine locations 10587 | -4/Factory | Loaded intel: 26 terminal locations 10588 | -4/Factory | Loaded intel: 6 fabricator locations 10589 | -4/Factory | Loaded intel: 6 repair station locations 10667 | -4/Factory | Identified Ghost Barrier 10668 | -4/Factory | Identified exit to Upper Caves 10761 | -4/Factory | Spotted B-86 Titan 10858 | -4/Factory | Entered Upper Caves 10858 | -4/Upper Caves | Accompanied by 2 allies 10958 | -4/Upper Caves | Build established: Hacker-Mutant 10959 | -4/Upper Caves | Attracted the attention of an 0b10 outpost 11027 | -4/Upper Caves | Discovered new exit (range 11) 11040 | -4/Upper Caves | Identified exit to Upper Caves 11067 | -4/Upper Caves | Entered another Upper Caves area 11067 | -4/Upper Caves | Accompanied by 3 allies 11067 | -4/Upper Caves | Spotted O1-RRK(f) 11068 | -4/Upper Caves | Allies destroyed O1-RRK(f) 11080 | -4/Upper Caves | Learned Research emergency access door positions 11178 | -4/Upper Caves | Found Exp. Thermal Shield 11211 | -4/Upper Caves | Found Imp. Powered Armor 11277 | -4/Upper Caves | Discovered new exit (range 9) 11280 | -4/Upper Caves | Identified exit to Zhirov 11310 | -4/Upper Caves | Entered Zhirov 11310 | -4/Zhirov | Accompanied by 1 ally 11310 | -4/Zhirov | Discovered new exit (range 3) 11318 | -4/Zhirov | Met Zhirov 11331 | -4/Zhirov | Zhirov requested help retrieving the SGEMP Prototype 11338 | -4/Zhirov | Found Alien Artifact 11338 | -4/Zhirov | Identified Integrated Reactor 11338 | -4/Zhirov | Installed Integrated Reactor, increased core energy generation (+10) 11369 | -4/Zhirov | Found Alien Artifact 11402 | -4/Zhirov | Identified exit to Proximity Caves 11420 | -4/Zhirov | Entered Proximity Caves 11420 | -3/Proximity Caves | Accompanied by 1 ally 11675 | -3/Proximity Caves | Spotted B-86 Titan 11682 | -3/Proximity Caves | Attracted the attention of an 0b10 checkpoint 11704 | -3/Proximity Caves | Discovered new exit (range 15) 11709 | -3/Proximity Caves | Identified exit to Research 11710 | -3/Proximity Caves | Entered Research 11710 | -3/Research | Evolved 2 slots: Propulsion x1, Utility x1 11712 | -3/Research | Loaded intel: 110 machine locations 11746 | -3/Research | Identified exit to Armory 11746 | -3/Research | Identified exit to Testing 11746 | -3/Research | Adv. Hacking Suite fried by hacking feedback 11862 | -3/Research | Assimilated C-35 Carver with FLK Orb 11887 | -3/Research | Assimilated H-71 Marshal with FLK Orb 11911 | -3/Research | Entered Armory 11913 | -3/Armory | Loaded intel: 86 machine locations 11916 | -3/Armory | Lost 9 parts (1p3n4u1w) 11984 | -3/Armory | Spotted B-86 Titan 11995 | -3/Armory | Identified Transdimensional Reconstructor 11995 | -3/Armory | Warped through subspace to slip node 11995 | -3/Armory | Discovered new exit (range 1) 11995 | -3/Armory | Identified exit to Lab 12007 | -3/Armory | Entered Lab 12007 | -3/Lab | Discovered new exit (range 9) 12012 | -3/Lab | Identified exit to Research 12014 | -3/Lab | Hidden lab's door opened automatically 12014 | -3/Lab | Sensor layout match revealed 12015 | -3/Lab | Gained access to the hidden lab's interior 12085 | -3/Lab | Decrypted terminal 12118 | -3/Lab | Found Prototype Energy Cannon 12119 | -3/Lab | Identified Potential Cannon 12132 | -3/Lab | Found Prototype Special Weapon 12132 | -3/Lab | Identified Gui. Remote Datajack 12151 | -3/Lab | Decrypted terminal 12151 | -3/Lab | Acquired modification code for an L2 power cell 12167 | -3/Lab | Found Prototype Hackware 12177 | -3/Lab | Detected by scanners 12185 | -3/Lab | Hacked A5 with code downloaded from Data Conduit 12186 | -3/Lab | Confronted by A5 12188 | -3/Lab | Destroyed A5 12188 | -3/Lab | Disabled Active System Cloaker 12212 | -3/Lab | Found Prototype Protection 12230 | -3/Lab | Found Potential Cannon 12261 | -3/Lab | MAIN.C forces arrive to investigate 12315 | -3/Lab | System corruption reached 10% 12372 | -3/Lab | Identified Hvy. Regenerative Plating 12375 | -3/Lab | Found Alien Artifact 12391 | -3/Lab | Found Transdimensional Reconstructor 12406 | -3/Lab | Found Integrated Reactor 12407 | -3/Lab | Installed Integrated Reactor, increased core energy generation (+10) 12424 | -3/Lab | Found Alien Artifact 12799 | -3/Lab | Build established: Scavenger-Tank 12821 | -3/Lab | Decrypted terminal 12821 | -3/Lab | Decrypted terminal 12822 | -3/Lab | Decrypted terminal 12825 | -3/Lab | Found Alien Artifact 12826 | -3/Lab | Identified LC Capacitor 12924 | -3/Lab | Entered Research 12924 | -2/Research | Warlord forces began assault on 0b10 12924 | -2/Research | Evolved 2 slots: Utility x2 12925 | -2/Research | Identified exit to Quarantine 12926 | -2/Research | Loaded intel: 107 machine locations 13034 | -2/Research | Research machine network offline 13254 | -2/Research | Build established: Scavenger-Mutant 13353 | -2/Research | Lost 3 parts (1n1u1w) 13758 | -2/Research | Borebot progress halted 13819 | -2/Research | Met up with Warlord 13878 | -2/Research | Hacked God Mode, triggering a massive explosion 13878 | -2/Research | Destroyed God Mode 13881 | -2/Research | System corruption reached 10% 13927 | -2/Research | Warlord invited to help at Command 13927 | -2/Research | Given Cave Seal Controls access code 13964 | -2/Research | System corruption reached 30% 13977 | -2/Research | Identified Deep Network Scanner 14015 | -2/Research | Found Exp. Core Analyzer 14034 | -2/Research | Discovered exit to Quarantine (range 15) 14088 | -2/Research | Entered Quarantine 14090 | -2/Quarantine | Loaded intel: 69 machine locations 14090 | -2/Quarantine | Identified Core Reset Matrix 14090 | -2/Quarantine | Identified Core Regenerator 14090 | -2/Quarantine | Used Core Reset Matrix 14094 | -2/Quarantine | Detected hypermatrix surge 14094 | -2/Quarantine | Sensed 18 artifacts in vicinity 14104 | -2/Quarantine | Found Core Stripper 14153 | -2/Quarantine | Found Transdimensional Reconstructor 14154 | -2/Quarantine | Found Hpw. Transdimensional Reconstructor 14162 | -2/Quarantine | Found Dimensional Node Initializer 14164 | -2/Quarantine | Found Dimensional Node Initializer 14168 | -2/Quarantine | Found Transdimensional Reconstructor 14197 | -2/Quarantine | Found Terrabomb 14211 | -2/Quarantine | Found Subatomic Replicator 14222 | -2/Quarantine | Found Prototype Launcher 14244 | -2/Quarantine | Found Matter Drive 14315 | -2/Quarantine | Found Prototype Device 14315 | -2/Quarantine | Identified Exp. Transmission Jammer 14335 | -2/Quarantine | Spotted Fortress 14371 | -2/Quarantine | Lost 6 parts (1p3n2u) 14377 | -2/Quarantine | Discovered new exit (range 6) 14377 | -2/Quarantine | Discovered new exit (range 7) 14380 | -2/Quarantine | Identified exit to Section 7 14382 | -2/Quarantine | Identified exit to Protoforge 14384 | -2/Quarantine | Entered Section 7 14385 | -2/Section 7 | Detected hypermatrix surge 14385 | -2/Section 7 | Sensed 22 artifacts in vicinity 14404 | -2/Section 7 | Spotted B-90 Cyclops 14416 | -2/Section 7 | Identified Gui. Micro-nuke Launcher 14419 | -2/Section 7 | Warped through subspace 14449 | -2/Section 7 | Lost 7 parts (1p5n1w) 14454 | -2/Section 7 | Spotted S7 Guard 14465 | -2/Section 7 | Core integrity fell below 50% 14465 | -2/Section 7 | Found Core Membrane 14466 | -2/Section 7 | Installed Core Membrane, gained immunity to corruption 14467 | -2/Section 7 | Warped through subspace 14467 | -2/Section 7 | Spotted Alpha 7 14467 | -2/Section 7 | Spotted Alpha 7 14471 | -2/Section 7 | Initialized slip node 14491 | -2/Section 7 | Spotted B-99 Colossus 14492 | -2/Section 7 | Core integrity fell below 20% 14495 | -2/Section 7 | Used Core Regenerator, restored core integrity (+362) 14526 | -2/Section 7 | Lost 3 parts (1n2u) 14557 | -2/Section 7 | Spotted Executioner 14563 | -2/Section 7 | Spotted Executioner 14568 | -2/Section 7 | Build established: Hacker-Mutant 14582 | -2/Section 7 | Warped through subspace to slip node 14598 | -2/Section 7 | Destroyed by G-73 Enforcer with Phase Gun Last Messages --------------- 14569_ Penetrated by Slug. 14569_ Slug penetrates Machine. 14570_ Slammed into Executioner. 14572_ Executioner suffers critical hit (Destroy). 14572_ Slammed into Executioner. 14572_ Penetrated by Slug. 14572_ Slug penetrates Machine. 14572_ Penetrated by Slug. 14575_ Slug penetrates Reinforced Barrier. 14575_ Slug penetrates Machine. 14577_ Penetrated by Slug. 14578_ Slug penetrates Machine. 14580_ Penetrated by Slug. 14581_ Slug penetrates Machine. 14581_ Penetrated by Slug. 14582_ Slug penetrates Door. 14582_ Machine disabled. 14582_ Penetrated by Slug. 14582_ Warped through subspace, drawn to slip node. 14588_ System corrupted: Heat flow error (+158). Map ----- +----------------------------------------------------+ | ?????????????????????????????????????????????????? | | ?????????????????????????????????????????????????? | | ?????????????????????????????????????????????????? | | ???????????????????????????????????????????????? | | ????????????????????????????????????????????????? | | ?????????????????????????????????????????????????? | | ???????????????????????????????????????????????""" | | ????????????????????????????????????????????"""" | | ???????????????????????????????????? ? | | ??????????????????????????????????" | | ??????????????????????????????????" | | ??????????????????????????????????" | | ??????????????????????????????????" ? | | ??????????????????????????????????" "" | | ?????????????????????????????????#" "??" | | ?????????????????????????????????# "??" "" | | ?????????????????????????????????#" """" "" | | ??????????????#??????????????????#"" | | ??????????????# ????????????????#""" " " | | ????????????????[ ???????????????#""" "??" | | ????????????????? ????????????###""" "?" """ | | ??????????#########+############ # """""" | | ???????? / R !! | | ??????? g / | | ??????? % g g / | | ???????? g @ /c | | #???????????/#############+##### # | | ????????????????????# #?###""" | | ????????????????????# #???#""" | | ???????????!????????# ! " #???#""" | | ????????????????????# #???#"" | | ????????????????????# ! #????" | | ????????????????????# #???# """""""""" | | ????????????????????# #???# """""""""" | | ????????????????????# #???################# | | ????????????????????# #???????????????????? | | ????????????????????##########???????????????????? | | ?????????????????????????????????????????????????? | | ?????????????????????????????????????????????????? | | ?????????????????????????????????????????????????? | | ?????????????????????????????????????????????????? | | ?????????????????????????????????????????????????? | | ?????????????????????????????????????????????????? | | ?????????????????????????????????????????????????? | | ?????????????????????????????????????????????????? | | ?????????????????????????????????????????????????? | | ?????????????????????????????????????????????????? | | ????????????????????????????????????????????!!!??? | | ?????????????????????????????????????????????????? | | ?????????????????????????????????????????????????? | +----------------------------------------------------+ Best States ------------- Heat Dissipation 97 Energy Generation 65 Energy Capacity 700 Matter Stores 300 Matter Capacity 300 Sight Range 22 Robot Scan Range 20 Terrain Scan Density 10 Jamming Range 22 Cloak Strength 3 Additional Mass Support 9 Corruption Block 20 Armor Coverage 1000 Resistance: KI 30 Resistance: TH 30 Core Shielding 10 Utility Shielding 66 Weapon Shielding 66 Point Defense Rating 240 Phase Shifting 10 Evasion (%) 68 Targeting Accuracy 12 Melee Accuracy 8 Core Analysis 8 Recoil Reduction 2 Offensive Hacking 37 Defensive Hacking 20 Item Schematics ----------------- None Robot Schematics ------------------ H-88 Terminator | -2/Quarantine | Hacked Fabricated ------------ Nothing Repaired ---------- Nothing Alien Tech Used ----------------- Integrated Reactor Transdimensional Reconstructor LC Capacitor Core Reset Matrix Matter Drive Core Stripper Core Membrane High-powered Transdimensional Reconstructor Dimensional Node Initializer Core Regenerator Achievements -------------- None Challenges ------------ None Game ------ Seed SignalCargoFlail Manual? 0 Play Time 02:22:41 Cumulative 387.4 hours Start 2025.10.15 @ 13:34:16 End 2025.10.15 @ 16:55:59 Sessions 5 Manual Loads 0 Difficulty Rogue Special Mode None Game No. 508 Rogue 508 Adventurer 0 Explorer 0 Win Type - Total 11 Types 6/0/1/2/1/0/1/0/0/0 Lore% 88 Gallery% 84 Achievement% 70 Wizard Run 0 Options --------- Layout 0 ASCII 0 Keyboard 0 Movement Mouse Keybinds 0 Fullscreen 1 Font 24/Tamsyn Map View 76x50 Zoom Use 0% Tactical HUD 1 Map Filters NONE Filters NONE Steam 1 RUN: 2dce4ce2-48ba-4433-83a5-5aff1cd17a14